[Event "GER-ch Youth-U12 2024"]
[Site "Willingen"]
[Date "2024.05.22"]
[Round "5"]
[White "Schellinger, Florian"]
[Black "Prashanthakumar, Arnesh"]
[Result "0-1"]
[ECO "C50"]
[WhiteElo "863"]
[BlackElo "1634"]
[Annotator "NA RC"]
[PlyCount "90"]
[EventDate "2022.06.05"]
[EventType "swiss"]
[EventRounds "9"]
[EventCountry "GER"]
[SourceTitle "playchess.com"]
[Source "ChessBase"]
[SourceQuality "1"]
[TimeControl "40/4500+30:900+30"]

1. e4 {[%emt 0:00:00]} e5 {[%emt 0:00:00]} 2. Nf3 {[%emt 0:00:00]} Nc6 {[%emt 0:00:00]} 3. Bc4 {[%emt 0:00:00]} Bc5 {[%emt 0:00:00]} 4. Nc3 {[%emt 0:00:00]} Nf6 {[%emt 0:00:00]} 5. d3 {[%emt 0:00:00]} d6 {[%emt 0:00:00]} 6. Bg5 {[%emt 0:00:00]} h6 {[%emt 0:00:00]} 7. Bh4 {[%emt 0:00:00]} Bg4 {[%emt 0:00:00]} 8. h3 {[%emt 0:00:00]} Be6 {[%emt 0:00:00]} 9. Bb5 {[%emt 0:00:00]} a6 {[%emt 0:00:00]} 10. Ba4 {[%emt 0:00:00]} b5 {[%emt 0:00:00]} 11. Bb3 {[%emt 0:00:00]} Na5 {[%emt 0:00:00]} 12. Bd5 {[%emt 0:00:00]} c6 {[%emt 0:00:00]} 13. Bb3 {[%emt 0:00:00]} Nxb3 {[%emt 0:00:00]} 14. axb3 {[%emt 0:00:00]} Qb6 {[%emt 0:00:00]} 15. Qe2 {[%emt 0:00:00]} Nh5 {[%emt 0:03:00]} 16. g3 {[%emt 0:00:42]} g5 {[%emt 0:00:58]} 17. Nxg5 {[%emt 0:00:58]} hxg5 {[%emt 0:00:59]} 18. Bxg5 {[%emt 0:00:21]} f6 {[%emt 0:01:15]} 19. Be3 {[%emt 0:00:14]} Bxe3 {[%emt 0:00:28]} 20. Qxe3 {[%emt 0:00:35]} Qxe3+ {[%emt 0:00:35]} 21. fxe3 {[%emt 0:00:19]} Nxg3 {[%emt 0:00:18]} 22. Rg1 {[%emt 0:00:29]} Rxh3 {[%emt 0:00:20]} 23. O-O-O {[%emt 0:01:06]} b4 {[%emt 0:00:14]} 24. Rxg3 {[%emt 0:01:21]} Rxg3 {[%emt 0:00:44]} 25. Ne2 {[%emt 0:00:16]} Rg2 {[%emt 0:00:24]} 26. Rh1 {[%emt 0:00:39]} O-O-O {[%emt 0:00:26]} 27. Kd2 {[%emt 0:00:26]} Bg4 {[%emt 0:00:09]} 28. Re1 {[%emt 0:01:07]} Rxe2+ {[%emt 0:00:08]} 29. Rxe2 {[%emt 0:00:11]} Bxe2 {[%emt 0:00:05]} 30. Kxe2 {[%emt 0:00:17]} Rh8 {[%emt 0:00:16]} 31. c4 {[%emt 0:00:16]} bxc3 {[%emt 0:00:19]} 32. bxc3 {[%emt 0:00:33]} Rh2+ {[%emt 0:00:08]} 33. Kd1 {[%emt 0:00:12]} Rb2 {[%emt 0:00:06]} 34. b4 {[%emt 0:00:15]} c5 {[%emt 0:00:10]} 35. bxc5 {[%emt 0:00:12]} a5 {[%emt 0:00:09]} 36. cxd6 {[%emt 0:00:18]} a4 {[%emt 0:00:08]} 37. Kc1 {[%emt 0:00:14]} Rb7 {[%emt 0:00:10]} 38. d4 {[%emt 0:00:10]} a3 {[%emt 0:00:08]} 39. dxe5 {[%emt 0:00:08]} fxe5 {[%emt 0:00:09]} 40. d7+ {[%emt 0:00:25]} Kxd7 {[%emt 0:00:08]} 41. c4 {[%emt 0:15:11]} a2 {[%emt 0:15:05]} 42. Kc2 {[%emt 0:00:17]} a1=Q {[%emt 0:00:14]} 43. c5 {[%emt 0:00:08]} Rb2+ {[%emt 0:00:31]} 44. Kd3 {[%emt 0:00:28]} Qd1+ {[%emt 0:00:13]} 45. Kc4 {[%emt 0:00:19]} Qb3# {[%emt 0:00:18]} 0-1

[Event "GER-ch Youth-U12 2024"]
[Site "Willingen"]
[Date "2024.05.22"]
[Round "6"]
[White "Tarasenko, Nazar"]
[Black "Vartanian, Roman"]
[Result "1/2-1/2"]
[ECO "D36"]
[WhiteElo "2061"]
[BlackElo "1797"]
[Annotator "RC"]
[PlyCount "77"]
[EventDate "2022.06.05"]
[EventType "swiss"]
[EventRounds "9"]
[EventCountry "GER"]
[SourceTitle "playchess.com"]
[Source "ChessBase"]
[SourceQuality "1"]
[TimeControl "40/4500+30:900+30"]

1. d4 {[%emt 0:00:00]} Nf6 {[%emt 0:00:00]} 2. c4 {[%emt 0:00:00]} e6 {[%emt 0:00:00]} 3. Nc3 {[%emt 0:00:00]} d5 {[%emt 0:00:00]} 4. cxd5 {[%emt 0:00:00]} exd5 {[%emt 0:00:00]} 5. Bg5 {[%emt 0:00:00]} c6 {[%emt 0:00:00]} 6. e3 {[%emt 0:00:00]} Be7 {[%emt 0:00:00]} 7. Qc2 {[%emt 0:00:00]} Nbd7 {[%emt 0:00:00]} 8. Bd3 {[%emt 0:00:00]} O-O {[%emt 0:00:00]} 9. Nf3 {[%emt 0:00:00]} Re8 {[%emt 0:00:00]} 10. O-O {[%emt 0:00:00]} Nf8 {[%emt 0:00:00]} 11. h3 {[%emt 0:00:00]} g6 {[%emt 0:00:00]} 12. Ne5 {[%emt 0:00:00]} Ne6 {[%emt 0:00:00]} 13. Bh4 {[%emt 0:00:00]} Ng7 {[%emt 0:00:00]} 14. f4 {[%emt 0:00:00]} Bf5 {[%emt 0:00:00]} 15. g4 {[%emt 0:00:00]} Bxd3 {[%emt 0:00:00]} 16. Qxd3 {[%emt 0:00:00]} Ne4 {[%emt 0:07:07]} 17. Be1 {[%emt 0:00:00]} f6 {[%emt 0:10:52]} 18. Nf3 {[%emt 0:00:00]} Nxc3 {[%emt 0:03:41]} 19. Bxc3 {[%emt 0:00:00]} f5 {[%emt 0:01:47]} 20. b4 {[%emt 0:00:00]} Bd6 {[%emt 0:03:58]} 21. Rab1 {[%emt 0:02:11]} Qd7 {[%emt 0:02:11]} 22. g5 {[%emt 0:01:18]} a6 {[%emt 0:05:38]} 23. a4 {[%emt 0:00:11]} b5 {[%emt 0:00:11]} 24. a5 {[%emt 0:00:49]} Re6 {[%emt 0:00:52]} 25. Bd2 {[%emt 0:00:50]} Ne8 {[%emt 0:06:15]} 26. Rfc1 {[%emt 0:00:37]} Rc8 {[%emt 0:02:17]} 27. Ne5 {[%emt 0:00:12]} Bxe5 {[%emt 0:00:33]} 28. dxe5 {[%emt 0:00:04]} Kg7 {[%emt 0:09:06]} 29. Bc3 {[%emt 0:00:10]} c5 {[%emt 0:05:04]} 30. bxc5 {[%emt 0:00:26]} Qc6 {[%emt 0:02:27]} 31. Bb4 {[%emt 0:00:42]} Kf7 {[%emt 0:01:04]} 32. Qd4 {[%emt 0:00:15]} Rd8 {[%emt 0:01:00]} 33. Rd1 {[%emt 0:00:07]} Nc7 {[%emt 0:04:46]} 34. Kf2 {[%emt 0:00:49]} h6 {[%emt 0:00:52]} 35. h4 {[%emt 0:00:23]} h5 {[%emt 0:00:04]} 36. Re1 {[%emt 0:00:59]} Ke8 {[%emt 0:11:09]} 37. Rbd1 {[%emt 0:02:23]} Rd7 {[%emt 0:00:19]} 38. Kg3 {[%emt 0:00:54]} Kd8 {[%emt 0:00:13]} 39. Rd3 {[%emt 0:02:55]} 1/2-1/2

[Event "GER-ch Youth-U12 2024"]
[Site "Willingen"]
[Date "2024.05.22"]
[Round "6"]
[White "Sheng, Ming"]
[Black "Nezhyvenko, Mykhaylo"]
[Result "0-1"]
[ECO "B11"]
[WhiteElo "2031"]
[BlackElo "2075"]
[Annotator "RC"]
[PlyCount "98"]
[EventDate "2022.06.05"]
[EventType "swiss"]
[EventRounds "9"]
[EventCountry "GER"]
[SourceTitle "playchess.com"]
[Source "ChessBase"]
[SourceQuality "1"]
[TimeControl "40/4500+30:900+30"]

1. e4 {[%emt 0:00:00]} c6 {[%emt 0:00:00]} 2. Nc3 {[%emt 0:00:00]} d5 {[%emt 0:00:00]} 3. Nf3 {[%emt 0:00:00]} dxe4 {[%emt 0:00:00]} 4. Nxe4 {[%emt 0:00:00]} Nf6 {[%emt 0:00:00]} 5. Qe2 {[%emt 0:00:00]} Na6 {[%emt 0:00:00]} 6. d3 {[%emt 0:00:00]} Bg4 {[%emt 0:00:00]} 7. h3 {[%emt 0:00:00]} Bh5 {[%emt 0:00:00]} 8. a3 {[%emt 0:00:00]} e6 {[%emt 0:00:00]} 9. Bg5 {[%emt 0:00:00]} Be7 {[%emt 0:00:00]} 10. O-O-O {[%emt 0:00:00]} Qd5 {[%emt 0:00:00]} 11. Bxf6 {[%emt 0:00:00]} gxf6 {[%emt 0:00:00]} 12. Kb1 {[%emt 0:05:40]} O-O-O {[%emt 0:00:49]} 13. g4 {[%emt 0:01:05]} Bg6 {[%emt 0:02:19]} 14. Bg2 {[%emt 0:00:52]} Qa5 {[%emt 0:01:06]} 15. Nfd2 {[%emt 0:05:17]} Qc7 {[%emt 0:07:28]} 16. Qe3 {[%emt 0:02:15]} f5 {[%emt 0:02:28]} 17. gxf5 {[%emt 0:04:29]} exf5 {[%emt 0:00:09]} 18. Nc3 {[%emt 0:01:01]} Rhe8 {[%emt 0:02:35]} 19. Nb3 {[%emt 0:04:21]} Kb8 {[%emt 0:03:09]} 20. Rhe1 {[%emt 0:04:13]} f6 {[%emt 0:03:08]} 21. Qf3 {[%emt 0:01:48]} Nc5 {[%emt 0:01:46]} 22. Nc1 {[%emt 0:02:59]} Bd6 {[%emt 0:02:23]} 23. d4 {[%emt 0:02:01]} Ne6 {[%emt 0:02:28]} 24. N3e2 {[%emt 0:11:44]} Ng5 {[%emt 0:05:50]} 25. Qb3 {[%emt 0:00:31]} Ne4 {[%emt 0:03:40]} 26. Nd3 {[%emt 0:01:07]} Bf7 {[%emt 0:09:43]} 27. c4 {[%emt 0:02:13]} Qa5 {[%emt 0:01:47]} 28. Qc2 {[%emt 0:04:05]} Qa6 {[%emt 0:01:05]} 29. c5 {[%emt 0:01:13]} Bc7 {[%emt 0:01:50]} 30. Nb4 {[%emt 0:05:47]} Qc4 {[%emt 0:05:53]} 31. Bxe4 {[%emt 0:02:02]} fxe4 {[%emt 0:00:58]} 32. Qxc4 {[%emt 0:01:24]} Bxc4 {[%emt 0:00:03]} 33. Nc3 {[%emt 0:00:30]} a5 {[%emt 0:00:37]} 34. Nc2 {[%emt 0:03:13]} Bd3 {[%emt 0:00:52]} 35. Ne2 {[%emt 0:03:48]} f5 {[%emt 0:02:16]} 36. Nc1 {[%emt 0:00:19]} Bc4 {[%emt 0:01:45]} 37. Ne3 {[%emt 0:00:43]} Be6 {[%emt 0:00:24]} 38. Ne2 {[%emt 0:01:59]} f4 {[%emt 0:06:27]} 39. Nc2 {[%emt 0:00:28]} Bxh3 {[%emt 0:00:46]} 40. Nc3 {[%emt 0:01:11]} Bg4 {[%emt 0:02:14]} 41. Rd2 {[%emt 0:15:31]} Bf5 {[%emt 0:02:35]} 42. d5 {[%emt 0:02:29]} e3 {[%emt 0:14:59]} 43. fxe3 {[%emt 0:01:11]} fxe3 {[%emt 0:00:07]} 44. Rdd1 {[%emt 0:05:19]} Bg3 {[%emt 0:00:52]} 45. Rg1 {[%emt 0:01:03]} e2 {[%emt 0:00:05]} 46. Rxg3 {[%emt 0:01:29]} exd1=R+ {[%emt 0:00:16]} 47. Nxd1 {[%emt 0:00:26]} Rxd5 {[%emt 0:00:17]} 48. Nde3 {[%emt 0:00:57]} Rxe3 {[%emt 0:00:06]} 49. Rxe3 {[%emt 0:00:19]} Rxc5 {[%emt 0:00:06]} 0-1

[Event "GER-ch Youth-U12 2024"]
[Site "Willingen"]
[Date "2024.05.22"]
[Round "6"]
[White "Zhang, Yibo"]
[Black "Zimmer, Tim"]
[Result "1-0"]
[ECO "C45"]
[WhiteElo "1988"]
[BlackElo "1772"]
[Annotator "RC"]
[PlyCount "101"]
[EventDate "2022.06.05"]
[EventType "swiss"]
[EventRounds "9"]
[EventCountry "GER"]
[SourceTitle "playchess.com"]
[Source "ChessBase"]
[SourceQuality "1"]
[TimeControl "40/4500+30:900+30"]

1. e4 {[%emt 0:00:00]} e5 {[%emt 0:00:00]} 2. Nf3 {[%emt 0:00:00]} Nc6 {[%emt 0:00:00]} 3. d4 {[%emt 0:00:00]} exd4 {[%emt 0:00:00]} 4. Nxd4 {[%emt 0:00:00]} Bc5 {[%emt 0:00:00]} 5. Nb3 {[%emt 0:00:00]} Bb6 {[%emt 0:00:00]} 6. Qe2 {[%emt 0:00:00]} a5 {[%emt 0:00:00]} 7. a4 {[%emt 0:00:00]} Nf6 {[%emt 0:00:00]} 8. Nc3 {[%emt 0:00:26]} O-O {[%emt 0:00:00]} 9. Be3 {[%emt 0:01:06]} Bxe3 {[%emt 0:00:00]} 10. Qxe3 {[%emt 0:00:19]} d6 {[%emt 0:04:13]} 11. O-O-O {[%emt 0:00:46]} Be6 {[%emt 0:01:30]} 12. f3 {[%emt 0:07:48]} Qe7 {[%emt 0:09:17]} 13. g4 {[%emt 0:02:19]} Bxb3 {[%emt 0:07:04]} 14. cxb3 {[%emt 0:00:40]} Qe5 {[%emt 0:18:56]} 15. g5 {[%emt 0:04:50]} Nh5 {[%emt 0:03:38]} 16. Nd5 {[%emt 0:01:21]} Nb4 {[%emt 0:01:29]} 17. Kb1 {[%emt 0:14:34]} c6 {[%emt 0:12:10]} 18. Nb6 {[%emt 0:07:53]} Rad8 {[%emt 0:01:19]} 19. Nc4 {[%emt 0:01:12]} Qc5 {[%emt 0:04:53]} 20. Qxc5 {[%emt 0:18:13]} dxc5 {[%emt 0:00:08]} 21. Bh3 {[%emt 0:00:48]} Nf4 {[%emt 0:03:41]} 22. Bg4 {[%emt 0:00:39]} Ne6 {[%emt 0:05:44]} 23. Nxa5 {[%emt 0:03:05]} b6 {[%emt 0:02:57]} 24. Nc4 {[%emt 0:03:36]} Nd4 {[%emt 0:01:34]} 25. Nxb6 {[%emt 0:12:57]} Nxb3 {[%emt 0:00:13]} 26. Nc4 {[%emt 0:00:16]} Rd4 {[%emt 0:01:32]} 27. Rxd4 {[%emt 0:01:00]} cxd4 {[%emt 0:00:11]} 28. f4 {[%emt 0:01:48]} Nc5 {[%emt 0:02:37]} 29. Rd1 {[%emt 0:01:47]} d3 {[%emt 0:01:08]} 30. Bf3 {[%emt 0:02:19]} Nxa4 {[%emt 0:01:41]} 31. Kc1 {[%emt 0:00:01]} Nc5 {[%emt 0:00:57]} 32. Kd2 {[%emt 0:00:06]} Re8 {[%emt 0:00:35]} 33. Kc3 {[%emt 0:00:34]} Na2+ {[%emt 0:01:34]} 34. Kd4 {[%emt 0:00:20]} Ne6+ {[%emt 0:00:10]} 35. Kxd3 {[%emt 0:01:02]} Nxf4+ {[%emt 0:00:39]} 36. Ke3 {[%emt 0:00:30]} Ne6 {[%emt 0:00:02]} 37. h4 {[%emt 0:00:18]} Rb8 {[%emt 0:01:14]} 38. e5 {[%emt 0:00:41]} c5 {[%emt 0:01:04]} 39. Bg4 {[%emt 0:01:02]} Rb3+ {[%emt 0:02:01]} 40. Rd3 {[%emt 0:00:16]} Rb4 {[%emt 0:00:32]} 41. Bxe6 {[%emt 0:00:00]} fxe6 {[%emt 0:00:00]} 42. Rd8+ {[%emt 0:00:00]} Kf7 {[%emt 0:00:00]} 43. Nd6+ {[%emt 0:00:00]} Ke7 {[%emt 0:00:00]} 44. Rg8 {[%emt 0:00:00]} Rxh4 {[%emt 0:00:00]} 45. Rxg7+ {[%emt 0:00:00]} Kd8 {[%emt 0:00:00]} 46. Nb7+ {[%emt 0:00:00]} Ke8 {[%emt 0:04:47]} 47. Nxc5 {[%emt 0:00:00]} Rh3+ {[%emt 0:00:44]} 48. Kf4 {[%emt 0:00:00]} Nb4 {[%emt 0:02:53]} 49. Nxe6 {[%emt 0:07:02]} Rh4+ {[%emt 0:06:09]} 50. Kf5 {[%emt 0:03:08]} Nd3 {[%emt 0:02:40]} 51. Kf6 {[%emt 0:00:40]} 1-0

[Event "GER-ch Youth-U12 2024"]
[Site "Willingen"]
[Date "2024.05.22"]
[Round "6"]
[White "Marynychenko, Yehor"]
[Black "Li, Yunqi"]
[Result "1/2-1/2"]
[ECO "C05"]
[WhiteElo "1896"]
[BlackElo "1940"]
[Annotator "RC"]
[PlyCount "185"]
[EventDate "2022.06.05"]
[EventType "swiss"]
[EventRounds "9"]
[EventCountry "GER"]
[SourceTitle "playchess.com"]
[Source "ChessBase"]
[SourceQuality "1"]
[TimeControl "40/4500+30:900+30"]

1. e4 {[%emt 0:00:00]} e6 {[%emt 0:00:00]} 2. d4 {[%emt 0:00:00]} d5 {[%emt 0:00:00]} 3. Nd2 {[%emt 0:00:00]} Nf6 {[%emt 0:00:00]} 4. e5 {[%emt 0:00:00]} Nfd7 {[%emt 0:00:00]} 5. f4 {[%emt 0:00:00]} c5 {[%emt 0:00:00]} 6. c3 {[%emt 0:00:00]} Nc6 {[%emt 0:00:00]} 7. Ndf3 {[%emt 0:00:00]} Qb6 {[%emt 0:00:00]} 8. g3 {[%emt 0:00:00]} cxd4 {[%emt 0:00:00]} 9. cxd4 {[%emt 0:00:00]} Be7 {[%emt 0:00:00]} 10. a3 {[%emt 0:00:00]} Na5 {[%emt 0:00:00]} 11. b4 {[%emt 0:00:00]} Nc4 {[%emt 0:00:00]} 12. Bxc4 {[%emt 0:00:00]} dxc4 {[%emt 0:00:00]} 13. Bd2 {[%emt 0:00:00]} Qc6 {[%emt 0:00:00]} 14. Kf2 {[%emt 0:00:00]} b5 {[%emt 0:00:00]} 15. Ne2 {[%emt 0:00:00]} Bb7 {[%emt 0:00:00]} 16. Nc3 {[%emt 0:00:00]} O-O {[%emt 0:00:00]} 17. d5 {[%emt 0:00:00]} exd5 {[%emt 0:00:00]} 18. Nd4 {[%emt 0:00:00]} Qg6 {[%emt 0:01:34]} 19. Ncxb5 {[%emt 0:00:00]} a6 {[%emt 0:01:07]} 20. Nc3 {[%emt 0:00:00]} a5 {[%emt 0:01:41]} 21. Rb1 {[%emt 0:09:45]} axb4 {[%emt 0:02:11]} 22. axb4 {[%emt 0:00:05]} Qd3 {[%emt 0:11:07]} 23. Be1 {[%emt 0:02:06]} Qxd1 {[%emt 0:00:25]} 24. Nxd1 {[%emt 0:00:11]} Ra2+ {[%emt 0:01:15]} 25. Kf1 {[%emt 0:08:32]} Rfa8 {[%emt 0:03:11]} 26. Bc3 {[%emt 0:03:47]} Nb6 {[%emt 0:02:40]} 27. Rg1 {[%emt 0:16:46]} Na4 {[%emt 0:04:27]} 28. Nf5 {[%emt 0:06:33]} Bd8 {[%emt 0:01:51]} 29. Bd4 {[%emt 0:02:22]} Bb6 {[%emt 0:01:55]} 30. Rg2 {[%emt 0:02:14]} Rxg2 {[%emt 0:01:01]} 31. Kxg2 {[%emt 0:00:05]} Bc8 {[%emt 0:00:13]} 32. Ne7+ {[%emt 0:06:57]} Kf8 {[%emt 0:00:14]} 33. Bxb6 {[%emt 0:00:10]} Nxb6 {[%emt 0:00:07]} 34. Nxc8 {[%emt 0:00:06]} Rxc8 {[%emt 0:00:11]} 35. Kf2 {[%emt 0:00:44]} d4 {[%emt 0:05:43]} 36. Ke2 {[%emt 0:03:35]} Nd5 {[%emt 0:02:32]} 37. Rc1 {[%emt 0:04:49]} Nxb4 {[%emt 0:01:10]} 38. Nb2 {[%emt 0:00:11]} d3+ {[%emt 0:01:11]} 39. Kd2 {[%emt 0:00:08]} Nc2 {[%emt 0:00:17]} 40. Nxc4 {[%emt 0:00:31]} Rxc4 {[%emt 0:01:47]} 41. Kxd3 {[%emt 0:15:23]} Rd4+ {[%emt 0:18:37]} 42. Kxc2 {[%emt 0:00:34]} Ke7 {[%emt 0:00:17]} 43. Rd1 {[%emt 0:00:39]} Ra4 {[%emt 0:00:14]} 44. Kd3 {[%emt 0:00:55]} f6 {[%emt 0:01:26]} 45. exf6+ {[%emt 0:00:30]} Kxf6 {[%emt 0:00:10]} 46. Ke3 {[%emt 0:00:19]} h6 {[%emt 0:00:56]} 47. Rd6+ {[%emt 0:01:12]} Kf7 {[%emt 0:00:08]} 48. Kf3 {[%emt 0:00:32]} Ra2 {[%emt 0:01:16]} 49. h3 {[%emt 0:00:39]} Rh2 {[%emt 0:00:54]} 50. Rd5 {[%emt 0:01:14]} Ke6 {[%emt 0:00:44]} 51. Re5+ {[%emt 0:00:18]} Kf6 {[%emt 0:00:10]} 52. Kg4 {[%emt 0:00:08]} g6 {[%emt 0:02:44]} 53. Ra5 {[%emt 0:00:45]} Rb2 {[%emt 0:01:00]} 54. Ra6+ {[%emt 0:00:38]} Kg7 {[%emt 0:00:23]} 55. Re6 {[%emt 0:01:30]} Kf7 {[%emt 0:00:23]} 56. Rc6 {[%emt 0:00:15]} Kg7 {[%emt 0:00:10]} 57. Kh4 {[%emt 0:02:00]} Rb4 {[%emt 0:00:31]} 58. Kg4 {[%emt 0:00:38]} Rb3 {[%emt 0:00:20]} 59. Rc7+ {[%emt 0:00:46]} Kf6 {[%emt 0:00:25]} 60. Rh7 {[%emt 0:00:47]} h5+ {[%emt 0:00:10]} 61. Kh4 {[%emt 0:00:46]} Rb5 {[%emt 0:00:11]} 62. Rh8 {[%emt 0:00:34]} Kg7 {[%emt 0:00:21]} 63. Re8 {[%emt 0:00:36]} Kh6 {[%emt 0:00:14]} 64. g4 {[%emt 0:01:36]} hxg4 {[%emt 0:00:25]} 65. hxg4 {[%emt 0:00:05]} Rb4 {[%emt 0:00:13]} 66. g5+ {[%emt 0:02:10]} Kg7 {[%emt 0:00:25]} 67. Kg4 {[%emt 0:00:05]} Rb1 {[%emt 0:00:57]} 68. Re7+ {[%emt 0:00:10]} Kg8 {[%emt 0:00:08]} 69. Ra7 {[%emt 0:00:14]} Rg1+ {[%emt 0:00:13]} 70. Kf3 {[%emt 0:00:13]} Re1 {[%emt 0:00:15]} 71. Kg3 {[%emt 0:01:05]} Re3+ {[%emt 0:00:12]} 72. Kg4 {[%emt 0:00:26]} Rb3 {[%emt 0:01:08]} 73. Ra4 {[%emt 0:01:02]} Rc3 {[%emt 0:00:00]} 74. Re4 {[%emt 0:00:07]} Ra3 {[%emt 0:00:00]} 75. f5 {[%emt 0:00:20]} gxf5+ {[%emt 0:00:00]} 76. Kxf5 {[%emt 0:00:04]} Ra6 {[%emt 0:00:00]} 77. Re7 {[%emt 0:00:15]} Rb6 {[%emt 0:00:00]} 78. Kg4 {[%emt 0:00:42]} Ra6 {[%emt 0:00:01]} 79. Kh5 {[%emt 0:00:06]} Rb6 {[%emt 0:00:05]} 80. Ra7 {[%emt 0:00:48]} Rc6 {[%emt 0:00:05]} 81. Kg4 {[%emt 0:00:15]} Rb6 {[%emt 0:00:06]} 82. Kf5 {[%emt 0:00:05]} Rc6 {[%emt 0:00:04]} 83. g6 {[%emt 0:00:05]} Rc1 {[%emt 0:00:05]} 84. Ra4 {[%emt 0:00:23]} Rf1+ {[%emt 0:00:15]} 85. Kg5 {[%emt 0:00:07]} Rg1+ {[%emt 0:00:05]} 86. Rg4 {[%emt 0:00:04]} Rxg4+ {[%emt 0:00:03]} 87. Kxg4 {[%emt 0:00:06]} Kg7 {[%emt 0:00:07]} 88. Kh5 {[%emt 0:00:10]} Kg8 {[%emt 0:00:08]} 89. Kg5 {[%emt 0:00:08]} Kg7 {[%emt 0:00:05]} 90. Kf5 {[%emt 0:00:04]} Kg8 {[%emt 0:00:05]} 91. Kf6 {[%emt 0:00:06]} Kf8 {[%emt 0:00:05]} 92. g7+ {[%emt 0:00:04]} Kg8 {[%emt 0:00:04]} 93. Kg6 {[%emt 0:00:04]} 1/2-1/2

[Event "GER-ch Youth-U12 2024"]
[Site "Willingen"]
[Date "2024.05.22"]
[Round "6"]
[White "Hoppe, Arthur"]
[Black "Hagn, Tobias"]
[Result "1-0"]
[ECO "D33"]
[WhiteElo "1859"]
[BlackElo "1631"]
[Annotator "NA RC"]
[PlyCount "127"]
[EventDate "2022.06.05"]
[EventType "swiss"]
[EventRounds "9"]
[EventCountry "GER"]
[SourceTitle "playchess.com"]
[Source "ChessBase"]
[SourceQuality "1"]
[TimeControl "40/4500+30:900+30"]

1. d4 {[%emt 0:00:00]} d5 {[%emt 0:00:00]} 2. Nf3 {[%emt 0:00:00]} c5 {[%emt 0:00:00]} 3. c4 {[%emt 0:00:00]} e6 {[%emt 0:00:00]} 4. cxd5 {[%emt 0:00:00]} exd5 {[%emt 0:00:00]} 5. Nc3 {[%emt 0:00:00]} cxd4 {[%emt 0:00:00]} 6. Nxd4 {[%emt 0:00:00]} Nc6 {[%emt 0:00:00]} 7. g3 {[%emt 0:00:00]} Bc5 {[%emt 0:00:00]} 8. Nb3 {[%emt 0:00:00]} Bb4 {[%emt 0:00:00]} 9. Bg2 {[%emt 0:00:00]} Be6 {[%emt 0:00:00]} 10. O-O {[%emt 0:00:00]} Nge7 {[%emt 0:00:00]} 11. Bg5 {[%emt 0:00:00]} h6 {[%emt 0:01:18]} 12. Bxe7 {[%emt 0:00:00]} Bxe7 {[%emt 0:02:34]} 13. Nxd5 {[%emt 0:00:00]} Bxd5 {[%emt 0:00:11]} 14. Bxd5 {[%emt 0:00:00]} Rc8 {[%emt 0:00:53]} 15. Bxc6+ {[%emt 0:00:00]} Rxc6 {[%emt 0:00:23]} 16. Qxd8+ {[%emt 0:00:00]} Kxd8 {[%emt 0:00:27]} 17. Rac1 {[%emt 0:00:00]} Rxc1 {[%emt 0:03:24]} 18. Rxc1 {[%emt 0:00:00]} Bf6 {[%emt 0:01:17]} 19. Rc2 {[%emt 0:00:00]} Re8 {[%emt 0:02:06]} 20. Na5 {[%emt 0:02:13]} b6 {[%emt 0:03:30]} 21. Nc4 {[%emt 0:00:40]} Re6 {[%emt 0:01:17]} 22. b3 {[%emt 0:01:41]} Rc6 {[%emt 0:05:58]} 23. Ne3 {[%emt 0:00:17]} Rxc2 {[%emt 0:13:10]} 24. Nxc2 {[%emt 0:02:59]} Bc3 {[%emt 0:00:17]} 25. e4 {[%emt 0:00:31]} Ke7 {[%emt 0:00:18]} 26. Kf1 {[%emt 0:00:08]} Ke6 {[%emt 0:01:43]} 27. Ke2 {[%emt 0:01:17]} g6 {[%emt 0:01:25]} 28. Kd3 {[%emt 0:00:31]} Bg7 {[%emt 0:00:36]} 29. Nd4+ {[%emt 0:00:12]} Kd7 {[%emt 0:06:07]} 30. Kc4 {[%emt 0:00:24]} a6 {[%emt 0:01:04]} 31. Kd5 {[%emt 0:00:07]} h5 {[%emt 0:03:02]} 32. Nc6 {[%emt 0:01:14]} a5 {[%emt 0:01:53]} 33. Ne5+ {[%emt 0:00:13]} Ke7 {[%emt 0:02:06]} 34. Nc4 {[%emt 0:00:31]} b5 {[%emt 0:04:03]} 35. Nxa5 {[%emt 0:00:04]} Bc3 {[%emt 0:00:37]} 36. Nc6+ {[%emt 0:00:06]} Kd7 {[%emt 0:00:43]} 37. Nd4 {[%emt 0:01:40]} b4 {[%emt 0:03:03]} 38. Kc4 {[%emt 0:00:20]} Be1 {[%emt 0:02:23]} 39. f3 {[%emt 0:00:58]} Bf2 {[%emt 0:02:10]} 40. Nc2 {[%emt 0:00:27]} Bg1 {[%emt 0:00:43]} 41. h3 {[%emt 0:15:44]} Bh2 {[%emt 0:15:52]} 42. g4 {[%emt 0:00:04]} hxg4 {[%emt 0:00:21]} 43. hxg4 {[%emt 0:00:03]} g5 {[%emt 0:00:33]} 44. Nxb4 {[%emt 0:00:36]} Kc7 {[%emt 0:01:05]} 45. Kd5 {[%emt 0:00:07]} Kd7 {[%emt 0:00:46]} 46. Nd3 {[%emt 0:00:06]} f6 {[%emt 0:00:52]} 47. Nc5+ {[%emt 0:00:14]} Kc7 {[%emt 0:00:49]} 48. Ke6 {[%emt 0:00:34]} Be5 {[%emt 0:01:09]} 49. Nd7 {[%emt 0:00:43]} Bc3 {[%emt 0:00:22]} 50. Nxf6 {[%emt 0:00:04]} Bxf6 {[%emt 0:00:23]} 51. Kxf6 {[%emt 0:00:04]} Kd6 {[%emt 0:00:14]} 52. e5+ {[%emt 0:00:07]} Kd7 {[%emt 0:00:26]} 53. Kf7 {[%emt 0:00:04]} Kc6 {[%emt 0:00:20]} 54. e6 {[%emt 0:00:03]} Kd5 {[%emt 0:00:17]} 55. e7 {[%emt 0:00:04]} Ke5 {[%emt 0:00:10]} 56. e8=Q+ {[%emt 0:00:09]} Kf4 {[%emt 0:00:13]} 57. Kf6 {[%emt 0:00:11]} Kxf3 {[%emt 0:00:14]} 58. Kf5 {[%emt 0:00:06]} Kg3 {[%emt 0:00:38]} 59. Qe2 {[%emt 0:00:08]} Kh3 {[%emt 0:00:15]} 60. Ke4 {[%emt 0:00:13]} Kg3 {[%emt 0:00:24]} 61. Ke3 {[%emt 0:00:30]} Kh4 {[%emt 0:00:40]} 62. Kf3 {[%emt 0:00:52]} Kh3 {[%emt 0:00:06]} 63. Qf1+ {[%emt 0:00:07]} Kh2 {[%emt 0:00:17]} 64. Qg2# {[%emt 0:00:05]} 1-0